fUSD/lending_fUSD_20251226
["ID","MTS","AMOUNT","RATE_DAILY","PERIOD"]
[399827646,1766707207408,-249.0,0.00012095,2]
[399827647,1766707207433,-57.7753486,0.00012095,2]
[399827648,1766707248289,-85.66319157,0.00012095,2]
[399827649,1766707248311,-152.0,0.0001417,2]
[399827650,1766707248334,-152.0,0.0001417,2]
[399827651,1766707248357,-152.0,0.0001417,2]
[399827652,1766707248381,-170.78,0.00015089,2]
[399827653,1766707248401,-152.81,0.0001509,2]
[399827654,1766707248423,-1000.0,0.00015455,2]
[399827655,1766707248449,-293.15348985,0.00015798,2]
[399827656,1766707248470,-1852.42,0.00015815,2]
[399827657,1766707248492,-167.84,0.00015905,2]
[399827658,1766707248515,-151.0,0.00016069,2]
[399827659,1766707248537,-177.0,0.0001608,2]
[399827660,1766707248559,-177.0,0.00016103,2]
[399827661,1766707248581,-1200.0,0.00016146,2]
[399827662,1766707248602,-1200.0,0.00016147,2]
[399827663,1766707248623,-300.0,0.00016147,2]
[399827664,1766707248645,-300.0,0.00016147,2]
[399827665,1766707248665,-578.20924308,0.00016149,2]
[399827666,1766707248686,-200.0,0.00016149,2]
[399827667,1766707248708,-207.4,0.00016149,2]
[399827668,1766707248730,-215.0738,0.00016149,2]
[399827669,1766707248752,-223.0315306,0.00016149,2]
[399827670,1766707248774,-231.28369723,0.00016149,2]
[399827671,1766707248795,-239.84119403,0.00016149,2]
[399827672,1766707248818,-248.71531821,0.00016149,2]
[399827673,1766707248840,-257.91778498,0.00016149,2]
[399827674,1766707248863,-267.46074303,0.00016149,2]
[399827675,1766707248885,-277.35679052,0.00016174,2]
[399827676,1766707248906,-322.6107,0.00016174,2]
[399827677,1766707248931,-550.0,0.00016182,2]
[399827678,1766707248953,-188.4651769,0.00016183,2]
[399827679,1766707248975,-284.26223188,0.00016183,2]
[399827680,1766707248997,-500.0,0.00016183,2]
[399827681,1766707249019,-500.0,0.00016183,2]
[399827682,1766707249041,-501.99535785,0.00016183,2]
[399827683,1766707249063,-500.0,0.00016183,2]
[399827684,1766707249085,-500.0,0.00016183,2]
[399827685,1766707249108,-500.0,0.00016183,2]
[399827686,1766707249132,-501.8389288,0.00016183,2]
[399827687,1766707249155,-150.99,0.00016183,2]
[399827688,1766707249177,-9999.99,0.00016183,2]
[399827689,1766707249199,-426.91447137,0.00016183,2]
[399827690,1766707249222,-500.0,0.00016183,2]
[399827691,1766707249245,-500.0,0.00016183,2]
[399827692,1766707249269,-258.12727716,0.00016183,2]
[399827693,1766707249293,-500.0,0.00016183,2]
[399827694,1766707249315,-500.0,0.00016183,2]
[399827695,1766707249340,-177.0,0.00016206,2]
[399827696,1766707249364,-177.0,0.00016217,2]
[399827697,1766707249390,-177.0,0.00016259,2]
[399827698,1766707249423,-152.00479197,0.00016302,2]
[399827699,1766707249445,-999.99,0.00016302,2]
[399827700,1766707249466,-3459.0,0.0001632,2]
[399827701,1766707249494,-4807.0,0.0001632,2]
[399827702,1766707249520,-177.0,0.00016422,2]
[399827703,1766707249544,-500.0,0.00016438,2]
[399827704,1766707249568,-500.0,0.00016438,2]
[399827705,1766707249594,-500.0,0.00016438,2]
[399827706,1766707249618,-351.62076977,0.00016438,2]
[399827707,1766707249642,-177.0,0.00016527,2]
[399827708,1766707249666,-177.0,0.00016561,2]
[399827709,1766707249689,-377.59704249,0.00016612,2]
[399827710,1766707249711,-317.55547819,0.00016612,2]
[399827711,1766707249734,-377.59704245,0.00016644,2]
[399827712,1766707249757,-317.55547818,0.00016653,2]
[399827713,1766707249779,-10000.0,0.00016654,2]
[399827714,1766707249802,-1078.84128106,0.0001666,2]
[399827715,1766707249826,-377.59704245,0.00016676,2]
[399827716,1766707249850,-317.55547818,0.00016694,2]
[399827717,1766707249875,-377.59704245,0.00016708,2]
[399827718,1766707249904,-500.0,0.00016709,2]
[399827719,1766707249937,-192.96538241,0.00016709,2]
[399827720,1766707249979,-689118.37224334,0.0001671,2]
[399827721,1766707278381,-152.00479197,0.00016239,2]
[399827722,1766707278405,-1610.0,0.0001632,2]
[399827723,1766707278428,-564.0,0.0001632,2]
[399827724,1766707278451,-6534.0,0.0001632,2]
[399827725,1766707278472,-612.0,0.0001632,2]
[399827726,1766707278495,-151.0,0.00016325,2]
[399827727,1766707278519,-151.0,0.00016332,2]
[399827728,1766707278542,-205.73564108,0.00016438,2]
[399827729,1766707278564,-3062.5,0.00016438,2]
[399827730,1766707278585,-200.0,0.00016506,2]
[399827731,1766707278605,-200.0,0.00016506,2]
[399827732,1766707278627,-200.0,0.00016506,2]
[399827733,1766707278648,-200.0,0.00016506,2]
[399827734,1766707278670,-192.40201433,0.0001671,2]
[399827735,1766707278696,-151.0,0.0001671,2]
[399827736,1766707278726,-310881.62775666,0.0001671,2]
[399827737,1766707278747,-3062.5,0.00016712,2]
[399827738,1766707278775,-1000.0,0.00016731,2]
[399827739,1766707278798,-505.95559397,0.00016731,2]
[399827740,1766707278821,-1000.0,0.00016731,2]
[399827741,1766707278843,-1000.0,0.00016731,2]
[399827742,1766707278866,-150.0,0.00016738,2]
[399827743,1766707278889,-377.59704245,0.0001674,2]
[399827744,1766707278912,-377.59704245,0.00016772,2]
[399827745,1766707278937,-317.55547818,0.00016777,2]
[399827746,1766707278959,-1263.0,0.00016782,2]
[399827747,1766707278984,-200.0,0.000168,2]
[399827748,1766707279009,-574.12855637,0.000168,2]
[399827749,1766707279032,-709.38527061,0.000168,2]
[399827750,1766707279056,-151.0,0.000168,2]
[399827751,1766707279080,-151.0,0.000168,2]
[399827752,1766707279103,-151.0,0.000168,2]
[399827753,1766707279127,-500.0,0.000168,2]
[399827754,1766707279150,-151.0,0.000168,2]
[399827755,1766707279175,-500.0,0.000168,2]
[399827756,1766707279199,-500.0,0.000168,2]
[399827757,1766707279223,-174.02551412,0.000168,2]
[399827758,1766707279247,-500.0,0.000168,2]
[399827759,1766707279272,-500.0,0.000168,2]
[399827760,1766707279295,-500.0,0.000168,2]
[399827761,1766707279318,-500.0,0.000168,2]
[399827762,1766707279340,-500.0,0.000168,2]
[399827763,1766707279364,-500.0,0.000168,2]
[399827764,1766707279386,-500.0,0.000168,2]
[399827765,1766707279409,-500.0,0.000168,2]
[399827766,1766707279431,-500.0,0.000168,2]
[399827767,1766707279453,-500.0,0.000168,2]
[399827768,1766707279475,-500.0,0.000168,2]
[399827769,1766707279498,-500.0,0.000168,2]
[399827770,1766707279520,-470.4943089,0.000168,2]
[399827771,1766707279540,-151.0,0.000168,2]
[399827772,1766707279563,-500.0,0.000168,2]
[399827773,1766707279585,-500.0,0.000168,2]
[399827774,1766707279607,-186.66093114,0.000168,2]
[399827775,1766707279627,-163.99770421,0.000168,2]
[399827776,1766707279649,-1500.0,0.000168,2]
[399827777,1766707279671,-620.0,0.000168,2]
[399827778,1766707279692,-1500.0,0.000168,2]
[399827779,1766707279714,-1500.0,0.000168,2]
[399827780,1766707279735,-1500.0,0.000168,2]
[399827781,1766707279762,-1500.0,0.000168,2]
[399827782,1766707279784,-377.59704245,0.00016804,2]
[399827783,1766707279806,-964.00244786,0.00016806,2]
[399827784,1766707279827,-150.0,0.00016811,2]
[399827785,1766707279848,-200.0,0.00016811,2]
[399827786,1766707279870,-200.0,0.00016811,2]
[399827787,1766707279891,-250.0,0.00016811,2]
[399827788,1766707279913,-193.337,0.00016811,2]
[399827789,1766707279938,-224.232,0.00016811,2]
[399827790,1766707279959,-228.067,0.00016811,2]
[399827791,1766707279981,-250.0,0.00016811,2]
[399827792,1766707280003,-156.406,0.00016811,2]
[399827793,1766707280026,-243.792,0.00016811,2]
[399827794,1766707280046,-190.427,0.00016811,2]
[399827795,1766707280067,-163.428,0.00016811,2]
[399827796,1766707280087,-150.0,0.00016811,2]
[399827797,1766707280108,-150.0,0.00016811,2]
[399827798,1766707280129,-150.0,0.00016811,2]
[399827799,1766707280149,-150.375,0.00016811,2]
[399827800,1766707280174,-1327.0,0.00016811,2]
[399827801,1766707280195,-170.98,0.00016811,2]
[399827802,1766707280218,-2445.02,0.00016811,2]
[399827803,1766707280240,-317.55547818,0.00016818,2]
[399827804,1766707280263,-150.0,0.00016829,2]
[399827805,1766707280287,-1000.0,0.0001683,2]
[399827806,1766707280310,-377.59704245,0.00016836,2]
[399827807,1766707280333,-300.0,0.00016858,2]
[399827808,1766707280355,-317.55547818,0.00016859,2]
[399827809,1766707280376,-200.0,0.00016864,2]
[399827810,1766707280398,-377.59704245,0.00016868,2]
[399827811,1766707280419,-1000.0,0.0001687,2]
[399827812,1766707280440,-1000.0,0.0001688,2]
[399827813,1766707280462,-1000.0,0.00016883,2]
[399827814,1766707280483,-150.0,0.00016888,2]
[399827815,1766707280504,-150.0,0.00016894,2]
[399827816,1766707280525,-881.45092358,0.000169,2]
[399827817,1766707280546,-377.59704245,0.000169,2]
[399827818,1766707280567,-317.55547818,0.000169,2]
[399827819,1766707280592,-395.3110464,0.000169,2]
[399827820,1766707280612,-750.8446,0.000169,2]
[399827821,1766707280633,-7317.0,0.000169,2]
[399827822,1766707280653,-150.0,0.0001692,2]
[399827823,1766707280675,-500.0,0.00016929,2]
[399827824,1766707280696,-1000.0,0.00016963,2]
[399827825,1766707280719,-1000.0,0.00016973,2]
[399827826,1766707280741,-1000.0,0.00016982,2]
[399827827,1766707280763,-3062.5,0.00016986,2]
[399827828,1766707280784,-300.0,0.00016995,2]
[399827829,1766707280805,-300.0,0.00016999,2]
[399827830,1766707280826,-1060.87558748,0.00016999,5]
[399827831,1766707280848,-1198.233,0.00016999,2]
[399827832,1766707280870,-170.31,0.00016999,2]
[399827833,1766707280891,-300.0,0.00016999,2]
[399827834,1766707280913,-38294.0582942,0.00016999,2]
[399827835,1766707280938,-2627.9928912,0.00016999,2]
[399827836,1766707280960,-3295.3973586,0.00016999,2]
[399827837,1766707280985,-320050.7375999,0.00017,2]
[399827838,1766707282190,242.26020491,0.00032876,120]
[399827839,1766707309935,-500.0,0.00016183,2]
[399827840,1766707309961,-500.0,0.00016183,2]
[399827841,1766707309984,-3240.0,0.00016537,2]
[399827842,1766707310008,-1000.0,0.0001661,2]
[399827843,1766707310030,-151.0,0.00016718,2]
[399827844,1766707310054,-151.0,0.00016727,2]
[399827845,1766707310077,-1000.0,0.00016731,2]
[399827846,1766707310099,-942.48151222,0.00016731,2]
[399827847,1766707310121,-1198.0,0.00016782,2]
[399827848,1766707310143,-432.0,0.00016811,2]
[399827849,1766707310164,-912.0,0.00016811,2]
[399827850,1766707310187,-958.586,0.00016818,2]
[399827851,1766707310208,-170.31112522,0.00016818,2]
[399827852,1766707310230,-3485.66138949,0.000169,2]
[399827853,1766707310317,-167358.95997307,0.00017,2]
[399827854,1766707340408,150.0,0.00032877,120]
[399827855,1766707351641,150.0,0.00032877,120]
[399827856,1766707365486,150.0,0.00032877,120]
[399827857,1766707381201,-200.0,0.00015419,2]
[399827858,1766707381224,-207.4,0.00015419,2]
[399827859,1766707381246,-215.0738,0.00015419,2]
[399827860,1766707381268,-223.0315306,0.00015419,2]
[399827861,1766707381290,-231.28369723,0.00015419,2]
[399827862,1766707381313,-224.83081169,0.00015419,2]
[399827863,1766707381334,-500.0,0.00016183,2]
[399827864,1766707381355,-500.0,0.00016183,2]
[399827865,1766707381391,-500.0,0.00016183,2]
[399827866,1766707381416,-152.00479197,0.00016239,2]
[399827867,1766707381439,-578.20924308,0.0001632,2]
[399827868,1766707381461,-191.70677435,0.00016457,2]
[399827869,1766707381484,-539.42064053,0.0001666,2]
[399827870,1766707381506,-151.0,0.00016674,2]
[399827871,1766707381532,-151.0,0.00016689,2]
[399827872,1766707381555,-151.0,0.000167,2]
[399827873,1766707381585,-500.0,0.000167,2]
[399827874,1766707381609,-200.0,0.000167,2]
[399827875,1766707381632,-171.61853396,0.000167,2]
[399827876,1766707381656,-500.0,0.000167,2]
[399827877,1766707381679,-500.0,0.000167,2]
[399827878,1766707381703,-500.0,0.000167,2]
[399827879,1766707381726,-500.0,0.000167,2]
[399827880,1766707381749,-500.0,0.000167,2]
[399827881,1766707381771,-500.0,0.000167,2]
[399827882,1766707381800,-500.0,0.000167,2]
[399827883,1766707381823,-574.12855637,0.000167,2]
[399827884,1766707381848,-500.0,0.000167,2]
[399827885,1766707381871,-500.0,0.000167,2]
[399827886,1766707381894,-500.0,0.000167,2]
[399827887,1766707381916,-151.0,0.000167,2]
[399827888,1766707381939,-620.0,0.000167,2]
[399827889,1766707381960,-200.0,0.000167,2]
[399827890,1766707381987,-322.6107,0.000167,2]
[399827891,1766707382009,-151.0,0.00016713,2]
[399827892,1766707382031,-1000.0,0.00016731,2]
[399827893,1766707382053,-1001.82577211,0.00016731,2]
[399827894,1766707382078,-1000.0,0.00016731,2]
[399827895,1766707382100,-151.0,0.00016732,2]
[399827896,1766707382123,-178.55,0.00016849,2]
[399827897,1766707382146,-317.55547818,0.000169,2]
[399827898,1766707382168,-511.81513334,0.000169,2]
[399827899,1766707382190,-1090.24693266,0.00016999,5]
[399827900,1766707382217,-1090.24693266,0.00016999,5]
[399827901,1766707382239,-300.0,0.00016999,2]
[399827902,1766707382262,-300.260802,0.00016999,2]
[399827903,1766707382285,-485.07576768,0.00016999,2]
[399827904,1766707382310,-406967.10410159,0.00017,2]
[399827905,1766707565378,157.0,0.0003287,120]
[399827906,1766707746446,500.0,0.00032876,120]
[399827907,1766707746937,500.0,0.00032876,120]
[399827908,1766707747208,500.0,0.00032876,120]
[399827909,1766707747492,500.0,0.00032876,120]
[399827910,1766707747750,500.0,0.00032876,120]
[399827911,1766707747993,500.0,0.00032876,120]
[399827912,1766707748245,478.8254686,0.00032876,120]
[399827918,1766707831543,-1200.0,0.00015287,2]
[399827920,1766707831554,-300.0,0.00015287,2]
[399827922,1766707831564,-114.4797699,0.00015288,2]
[399827925,1766707831615,-35.5202301,0.00015288,2]
[399827926,1766707831624,-150.0,0.00015288,2]
[399827927,1766707831634,-150.0,0.00015288,2]
[399827928,1766707831645,-150.0,0.00015288,2]
[399827929,1766707831654,-150.0,0.00015288,2]
[399827930,1766707831664,-102.3297699,0.00015288,2]
[399827931,1766707831675,-47.6702301,0.00015288,2]
[399827932,1766707831685,-150.0,0.00015288,2]
[399827933,1766707831695,-150.0,0.00015288,2]
[399827934,1766707831705,-150.0,0.00015288,2]
[399827935,1766707831715,-150.0,0.00015288,2]
[399827936,1766707831725,-150.0,0.00015288,2]
[399827937,1766707831735,-150.0,0.00015288,2]
[399827938,1766707831745,-150.0,0.00015288,2]
[399827939,1766707831755,-150.0,0.00015288,2]
[399827940,1766707831765,-150.0,0.00015442,2]
[399827941,1766707831776,-150.0,0.00015571,2]
[399827942,1766707831787,-150.0,0.00015597,2]
[399827943,1766707831796,-150.0,0.00015627,2]
[399827944,1766707831807,-150.0,0.00015751,2]
[399827945,1766707831816,-150.0,0.00015854,2]
[399827946,1766707831826,-150.0,0.00015854,2]
[399827947,1766707831836,-150.0,0.00015905,2]
[399827949,1766707831846,-150.0,0.00015967,2]
[399827951,1766707831857,-150.0,0.0001606,2]
[399827953,1766707831867,-550.0,0.00016082,2]
[399827955,1766707831877,-339.55303738,0.00016082,2]
[399827957,1766707831886,-1365.41393576,0.00016083,2]
[399827958,1766707831898,-3041.31296243,0.00016083,2]
[399827959,1766707831909,-55764.79669405,0.00016083,2]
[399827961,1766707831921,-289.14843026,0.00016083,2]
[399827986,1766707837719,-403.082,0.00016083,2]
[399827987,1766707837732,-2344.95103486,0.00016083,2]
[399827988,1766707837745,-514.67825129,0.00016083,2]
[399827989,1766707837757,-468.01847885,0.00016083,2]
[399827990,1766707837769,-1316.2203478,0.00016083,2]
[399827991,1766707837781,-1343.07308045,0.00016083,2]
[399827992,1766707837797,-513.46651266,0.00016083,2]
[399827993,1766707837951,-210.44721667,0.00016083,2]
[399828028,1766707839869,-342.78090121,0.00016083,2]
[399828029,1766707839919,-5381.08095703,0.00016083,2]
[399828030,1766707840064,-926701.52919668,0.00016083,2]
[399828031,1766707840074,-150.0,0.00016137,2]
[399828032,1766707840087,-500.0,0.00016183,2]
[399828033,1766707840098,-500.0,0.00016183,2]
[399828034,1766707840108,-500.0,0.00016183,2]
[399828035,1766707840118,-165.92,0.00016192,2]
[399828036,1766707840130,-150.0,0.00016214,2]
[399828037,1766707840140,-152.00479198,0.00016239,2]
[399828038,1766707840150,-150.0,0.00016307,2]
[399828039,1766707840159,-150.0,0.00016369,2]
[399828040,1766707840171,-150.0,0.0001642,2]
[399828041,1766707840180,-150.0,0.0001642,2]
[399828042,1766707840190,-2322.1,0.00016438,2]
[399828043,1766707840199,-160.88,0.00016521,2]
[399828044,1766707840209,-178.55,0.00016521,2]
[399828045,1766707840222,-178.55,0.00016521,2]
[399828046,1766707840233,-178.55,0.00016521,2]
[399828047,1766707840242,-150.0,0.00016523,2]
[399828048,1766707840253,-178.55,0.00016548,2]
[399828049,1766707840263,-178.55,0.00016548,2]
[399828050,1766707840274,-178.55,0.00016548,2]
[399828051,1766707840284,-178.55,0.00016548,2]
[399828052,1766707840294,-547.4042,0.0001661,2]
[399828053,1766707840304,-150.0,0.00016647,2]
[399828054,1766707840314,-269.71032027,0.0001666,2]
[399828055,1766707840324,-150.0,0.00016677,2]
[399828057,1766707840334,-150.0,0.00016685,2]
[399828059,1766707840344,-150.0,0.00016685,2]
[399828061,1766707840354,-150.0,0.00016703,2]
[399828063,1766707840364,-2322.1,0.00016712,2]
[399828064,1766707840374,-150.0,0.00016712,2]
[399828065,1766707840384,-150.0,0.00016712,2]
[399828066,1766707840393,-150.0,0.00016712,2]
[399828067,1766707840403,-341.0,0.00016726,2]
[399828068,1766707840413,-384.47833139,0.00016731,2]
[399828069,1766707840423,-1000.0,0.00016731,2]
[399828070,1766707840433,-1000.0,0.00016731,2]
[399828071,1766707840443,-1680.0,0.0001681,2]
[399828072,1766707840453,-1198.0,0.00016811,2]
[399828073,1766707840463,-912.0,0.00016811,2]
[399828074,1766707840473,-4807.0,0.00016811,2]
[399828075,1766707840484,-2430.001,0.00016811,2]
[399828076,1766707840493,-564.0,0.00016811,2]
[399828077,1766707840504,-200.0,0.00016816,2]
[399828078,1766707840514,-288.49242842,0.00016816,3]
[399828079,1766707840524,-200.0,0.00016816,2]
[399828080,1766707840534,-150.0,0.00016832,2]
[399828081,1766707840545,-178.55,0.00016849,2]
[399828082,1766707840555,-200.0,0.00016864,2]
[399828083,1766707840564,-178.55,0.000169,2]
[399828084,1766707840576,-178.55,0.000169,2]
[399828085,1766707840586,-150.0,0.000169,2]
[399828086,1766707840597,-5849.0,0.000169,2]
[399828087,1766707840615,-2322.1,0.00016986,2]
[399828088,1766707840631,-150.0,0.00016986,2]
[399828089,1766707840641,-150.0,0.00016986,2]
[399828090,1766707840651,-150.0,0.00016986,2]
[399828091,1766707840662,-150.0,0.00016986,2]
[399828092,1766707840672,-150.0,0.00016986,2]
[399828093,1766707840682,-150.0,0.00016986,2]
[399828094,1766707840694,-150.0,0.00016986,2]
[399828095,1766707840704,-14540.4380108,0.00016987,2]
[399828096,1766707840714,-2377.6772685,0.00016987,2]
[399828097,1766707840724,-26142.104153,0.00016987,2]
[399828098,1766707840734,-7134.630613,0.00016987,2]
[399828099,1766707840744,-500.0,0.0001699,2]
[399828100,1766707840755,-151.0,0.0001699,2]
[399828101,1766707840764,-500.0,0.0001699,2]
[399828102,1766707840775,-500.0,0.0001699,2]
[399828103,1766707840785,-500.0,0.0001699,2]
[399828104,1766707840795,-500.0,0.0001699,2]
[399828105,1766707840805,-500.0,0.0001699,2]
[399828106,1766707840815,-500.0,0.0001699,2]
[399828107,1766707840825,-500.0,0.0001699,2]
[399828108,1766707840835,-500.0,0.0001699,2]
[399828109,1766707840846,-574.12855637,0.0001699,2]
[399828110,1766707840855,-500.0,0.0001699,2]
[399828111,1766707840865,-200.0,0.0001699,2]
[399828112,1766707840875,-500.0,0.0001699,2]
[399828113,1766707840885,-620.0,0.0001699,2]
[399828114,1766707840895,-322.6107,0.0001699,2]
[399828115,1766707840905,-300.260805,0.00016997,2]
[399828116,1766707840915,-1220.76793045,0.00016998,2]
[399828117,1766707840924,-3380503.71589092,0.00017,2]
[399828129,1766707842836,-178.55,0.00016548,2]
[399828130,1766707842847,-876.65726429,0.00016811,2]
[399828131,1766707842859,-940.372799,0.00016811,2]
[399828132,1766707842871,-2144.47893671,0.00016811,2]
[399828133,1766707842881,-591947.29801186,0.00017,2]
[399828134,1766707842893,-70066.75372414,0.00017,2]
[399828135,1766707842911,-373.0722826,0.00017,2]
[399828154,1766707846248,-1425.08483533,0.00017,2]
[399828155,1766707846291,-5000.0,0.00017,2]
[399828156,1766707846303,-261086.55128618,0.00017,2]
[399828157,1766707846315,-7195.2887203,0.00017,2]
[399828158,1766707847381,-1655.11464742,0.00017,2]
[399828159,1766707847393,-917.95786762,0.00017,2]
[399828160,1766707847826,-1069.78502224,0.00017,2]
[399828161,1766707847839,-436.55,0.00017,2]
[399828162,1766707935540,878.4354113,0.000176,30]
[399828163,1766707936367,500.0,0.000176,30]
[399828164,1766707936708,500.0,0.000176,30]
[399828165,1766707937027,500.0,0.000176,30]
[399828166,1766707937228,892.04438719,0.000152,30]
[399828167,1766707937282,907.89617113,0.000152,30]
[399828168,1766707942002,500.0,0.000176,30]
[399828169,1766707942469,571.9125212,0.000152,30]
[399828170,1766707946272,500.0,0.000176,30]
[399828171,1766707946758,500.0,0.000176,30]
[399828172,1766707947222,605.70545197,0.000152,30]
[399828173,1766707949951,150.37196045,0.000176,30]
[399828174,1766707950214,500.0,0.000176,30]
[399828175,1766707950706,500.0,0.000176,30]
[399828176,1766707951151,500.0,0.000176,30]
[399828177,1766707951665,500.0,0.000152,30]
[399828178,1766707952134,892.037789,0.000152,30]
[399828194,1766709031652,-255.51004428,0.0001236,2]
[399828197,1766709031713,-842.48995572,0.0001236,2]
[399828198,1766709031725,-195.0,0.00012685,2]
[399828200,1766709031735,-1098.0,0.0001301,2]
[399828202,1766709031746,-300.0,0.00013596,2]
[399828203,1766709031756,-195.0,0.00013596,2]
[399828204,1766709031766,-1098.0,0.00013695,2]
[399828205,1766709031776,-1000.0,0.00013699,2]
[399828206,1766709031787,-270.28,0.00014248,2]
[399828207,1766709031797,-1098.0,0.0001438,2]
[399828208,1766709031807,-1200.0,0.00014558,2]
[399828209,1766709031818,-300.0,0.00014559,2]
[399828210,1766709031828,-1200.0,0.00014559,2]
[399828211,1766709031839,-300.0,0.00014559,2]
[399828212,1766709031850,-300.0,0.00014559,2]
[399828213,1766709031860,-4525.96,0.0001456,2]
[399828214,1766709031870,-1000.0,0.0001456,2]
[399828215,1766709031881,-1600.0,0.00014719,2]
[399828216,1766709031890,-150.0,0.00014763,2]
[399828217,1766709031900,-150.0,0.00015051,2]
[399828218,1766709031915,-1098.0,0.00015099,2]
[399828219,1766709031926,-166.66,0.000151,2]
[399828220,1766709031942,-414.0,0.000151,2]
[399828221,1766709031953,-500.0,0.00015188,2]
[399828222,1766709031963,-969.14,0.0001526,2]
[399828224,1766709031974,-150.0,0.00015288,2]
[399828225,1766709031985,-150.0,0.00015288,2]
[399828227,1766709031995,-150.0,0.00015288,2]
[399828229,1766709032006,-150.0,0.00015288,2]
[399828232,1766709032016,-150.0,0.00015288,2]
[399828233,1766709032027,-150.0,0.00015288,2]
[399828235,1766709032037,-150.0,0.00015288,2]
[399828237,1766709032047,-150.0,0.00015288,2]
[399828239,1766709032057,-150.0,0.00015288,2]
[399828241,1766709032068,-150.00000001,0.00015288,2]
[399828243,1766709032078,-150.0,0.00015288,2]
[399828245,1766709032088,-150.0,0.00015288,2]
[399828247,1766709032098,-150.0,0.00015288,2]
[399828249,1766709032109,-150.0,0.0001533,2]
[399828251,1766709032119,-150.0,0.00015341,2]
[399828253,1766709032129,-300.0,0.00015341,2]
[399828255,1766709032139,-150.0,0.00015344,2]
[399828257,1766709032149,-150.0,0.00015365,2]
[399828259,1766709032160,-150.0,0.00015373,2]
[399828261,1766709032170,-150.0,0.00015377,2]
[399828263,1766709032180,-150.0,0.00015382,2]
[399828265,1766709032190,-150.0,0.00015394,2]
[399828267,1766709032200,-150.0,0.00015401,2]
[399828269,1766709032210,-150.0,0.00015409,2]
[399828271,1766709032220,-500.0,0.00015415,2]
[399828273,1766709032230,-150.0,0.00015415,2]
[399828275,1766709032240,-166.66,0.00015417,2]
[399828277,1766709032250,-150.0,0.00015442,2]
[399828278,1766709032260,-150.0,0.00015447,2]
[399828279,1766709032270,-150.0,0.00015458,2]
[399828280,1766709032280,-150.0,0.00015458,2]
[399828281,1766709032290,-150.0,0.00015466,2]
[399828282,1766709032300,-150.0,0.00015476,2]
[399828283,1766709032311,-150.0,0.000155,2]
[399828284,1766709032321,-150.0,0.000155,2]
[399828285,1766709032331,-578.20924308,0.00015513,2]
[399828286,1766709032342,-322.6107,0.00015513,2]
[399828287,1766709032352,-200.0,0.00015513,2]
[399828288,1766709032361,-207.4,0.00015513,2]
[399828289,1766709032371,-215.0738,0.00015513,2]
[399828290,1766709032381,-223.0315306,0.00015513,2]
[399828291,1766709032391,-231.28369723,0.00015513,2]
[399828292,1766709032401,-239.84119403,0.00015513,2]
[399828293,1766709032411,-248.71531821,0.00015513,2]
[399828294,1766709032421,-257.91778498,0.00015513,2]
[399828295,1766709032431,-267.46074303,0.00015513,2]
[399828296,1766709032444,-277.35679052,0.00015513,2]
[399828297,1766709032455,-150.0,0.00015514,2]